fUST/lending_fUST_20240521
["ID","MTS","AMOUNT","RATE_DAILY","PERIOD"]
[327577782,1716240667679,-1485.31,0.00044383,42]
[327577783,1716240667690,-500.0,0.00044383,42]
[327577784,1716240667699,-500.0,0.00044383,42]
[327577785,1716240667709,-500.0,0.00044383,42]
[327577786,1716240667718,-546.55,0.00044383,42]
[327577787,1716240667727,-500.0,0.00044383,42]
[327577788,1716240667738,-1371.72,0.00044383,42]
[327577789,1716240667748,-500.0,0.00044383,42]
[327577790,1716240667758,-1789.43,0.00044383,42]
[327577791,1716240667767,-27847.71,0.00044383,42]
[327577792,1716240667776,-3900.83,0.00044383,30]
[327577793,1716240667786,-751.03,0.00044383,42]
[327577794,1716240667795,-885.61,0.00044383,42]
[327577795,1716240667805,-151.0,0.00044383,7]
[327577796,1716240667814,-151.0,0.00044383,7]
[327577797,1716240667824,-513.69469914,0.00044383,42]
[327577798,1716240667833,-500.0,0.00044383,42]
[327577799,1716240667843,-500.0,0.00044383,42]
[327577800,1716240667853,-186.736001,0.00044383,7]
[327577801,1716240667862,-186.736001,0.00044383,7]
[327577802,1716240667872,-556.86,0.00044383,42]
[327577803,1716240667882,-1046.32,0.00044383,42]
[327577804,1716240667891,-186.736001,0.00044383,7]
[327577805,1716240667900,-186.736001,0.00044383,7]
[327577806,1716240667910,-500.0,0.00044383,42]
[327577807,1716240667919,-584.61,0.00044383,42]
[327577808,1716240667935,-707.51,0.00044383,42]
[327577809,1716240667944,-500.0,0.00044383,2]
[327577810,1716240667953,-500.0,0.00044383,42]
[327577811,1716240667963,-1089.74,0.00044383,42]
[327577812,1716240667978,-440.63488133,0.00044399,30]
[327577813,1716240667989,-500.0,0.0004441,60]
[327577814,1716240667998,-500.0,0.00044438,60]
[327577815,1716240668007,-151.40188392,0.00044454,30]
[327577816,1716240668017,-500.0,0.00044465,60]
[327577817,1716240668026,-500.0,0.00044493,60]
[327577818,1716240668036,-212.12770649,0.00044503,30]
[327577819,1716240668045,-500.0,0.0004452,60]
[327577820,1716240668055,-440.63488133,0.00044524,30]
[327577821,1716240668064,-230.03723458,0.00044531,30]
[327577822,1716240668074,-440.63488133,0.00044538,30]
[327577823,1716240668083,-500.0,0.00044547,60]
[327577824,1716240668093,-152.7044776,0.00044575,30]
[327577825,1716240668102,-500.0,0.00044575,60]
[327577826,1716240668111,-212.12770649,0.00044588,30]
[327577827,1716240668121,-500.0,0.00044602,60]
[327577828,1716240668130,-212.12770649,0.00044616,30]
[327577829,1716240668140,-500.0,0.0004463,60]
[327577830,1716240668150,-500.0,0.00044657,7]
[327577831,1716240668159,-500.0,0.00044657,43]
[327577832,1716240668168,-500.0,0.00044657,43]
[327577833,1716240668177,-500.0,0.00044657,43]
[327577834,1716240668187,-500.0,0.00044657,43]
[327577835,1716240668196,-277.39634117,0.00044657,43]
[327577836,1716240668205,-500.0,0.00044657,43]
[327577837,1716240668215,-500.0,0.00044657,43]
[327577838,1716240668224,-500.0,0.00044657,43]
[327577839,1716240668234,-500.0,0.00044657,43]
[327577840,1716240668243,-1000.72,0.00044657,43]
[327577841,1716240668253,-364.18846524,0.00044657,43]
[327577842,1716240668263,-500.0,0.00044657,43]
[327577843,1716240668277,-500.0,0.00044657,43]
[327577844,1716240668287,-500.0,0.00044657,43]
[327577845,1716240668297,-241.23847525,0.00044657,43]
[327577846,1716240668676,-154.87609912,7.396e-05,2]
[327577847,1716240668686,-190.12390088,0.00044657,43]
[327577853,1716240719902,-1466.35161019,7.323e-05,2]
[327577854,1716240719925,-818.20300932,9.999e-05,2]
[327577855,1716240719946,-1149.34526784,0.00015,2]
[327577856,1716240719968,-3977.95327634,0.00015,2]
[327577857,1716240719991,-393.1602159,0.00019178,2]
[327577858,1716240720017,-3316.66015641,0.00020889,2]
[327577866,1716240725329,296.25494218,0.0003,120]
[327577867,1716240733183,403.74505782,0.0003,120]
[327577880,1716241019582,-273.37336231,9.9e-05,2]
[327577881,1716241025332,273.37336231,9.9e-05,2]
[327577883,1716241033155,273.37336231,9.9e-05,2]
[327577884,1716241041164,242.48646544,9.9e-05,2]
[327577885,1716241048548,164.02008532,9.9e-05,2]
[327577896,1716241741316,500.25138949,0.00029,30]
[327577916,1716241771128,528.0,0.00029,30]
[327577960,1716241833701,-1586.21617874,9.899e-05,2]
[327577962,1716241833713,-332.38819351,9.899e-05,2]
[327577964,1716241833726,-196.31297447,9.899e-05,2]
[327577966,1716241833735,-1219.62826803,0.000132,2]
[327577969,1716241833748,-1039.86669237,0.000132,2]
[327577971,1716241833757,-604.443748,0.00013699,2]
[327577973,1716241833766,-727.66604329,0.0001383,2]
[327577975,1716241833776,-58669.37632894,0.00013929,2]
[327577977,1716241833787,-250.0,0.00013929,2]
[327578045,1716241839494,-283.65215008,0.000137,2]
[327578047,1716241839503,-156.92939147,0.00013928,2]
[327578048,1716241839513,-163.20218723,0.00013928,2]
[327578050,1716241839523,-492.61789007,0.00013929,2]
[327578051,1716241839534,-3850.95617621,0.0001393,2]
[327578052,1716241839546,-21049.04382379,0.0001393,2]
[327578054,1716241839555,-3000.0,0.00014825,2]
[327578055,1716241839565,-1636.70152141,0.00014998,2]
[327578057,1716241839574,-942.77170322,0.00015,2]
[327578058,1716241839584,-2108.05589247,0.00015,2]
[327578059,1716241839593,-1684.33877323,0.00015,2]
[327578060,1716241839603,-4220.84098009,0.00015,2]
[327578176,1716241843631,-309.62773432,0.00013927,2]
[327578178,1716241843639,-245.6106982,0.00013928,2]
[327578180,1716241843649,-3657.61796222,0.00015,2]
[327578182,1716241843668,-12656.53152696,0.00015,2]
[327578184,1716241843679,-15083.17551688,0.00015,2]
[327578186,1716241843687,-1149.34526784,0.00015,2]
[327578188,1716241843698,-154.90705577,0.000165,2]
[327578190,1716241843708,-250.0,0.00019178,2]
[327578192,1716241843718,-500.0,0.00019178,2]
[327578195,1716241843728,-500.0,0.00019178,2]
[327578196,1716241843738,-500.0,0.00019178,2]
[327578198,1716241843747,-426.67768894,0.00019178,2]
[327578200,1716241843757,-500.0,0.00019178,2]
[327578202,1716241843766,-500.0,0.00019178,2]
[327578203,1716241843775,-172.13717858,0.00019178,2]
[327578204,1716241843784,-500.0,0.00019178,2]
[327578205,1716241843794,-500.0,0.00019178,2]
[327578206,1716241843803,-500.0,0.00019178,2]
[327578207,1716241843813,-500.0,0.00019178,2]
[327578208,1716241843822,-500.0,0.00019178,2]
[327578209,1716241843831,-500.0,0.00019178,2]
[327578210,1716241843840,-490.52701378,0.00019178,2]
[327578211,1716241843849,-453.31508788,0.00019178,2]
[327578212,1716241843859,-500.0,0.00019178,2]
[327578222,1716241843868,-500.0,0.00019178,2]
[327578229,1716241843877,-500.0,0.00019178,2]
[327578237,1716241843886,-500.0,0.00019178,2]
[327578243,1716241843895,-383.93335347,0.00019178,2]
[327578250,1716241843905,-500.0,0.00019178,2]
[327578253,1716241843915,-500.0,0.00019178,2]
[327578255,1716241843924,-500.0,0.00019178,2]
[327578257,1716241843934,-500.0,0.00019178,2]
[327578258,1716241843943,-500.0,0.00019178,2]
[327578259,1716241843952,-500.0,0.00019178,2]
[327578260,1716241843962,-500.0,0.00019178,2]
[327578261,1716241843971,-500.0,0.00019178,2]
[327578262,1716241843981,-500.0,0.00019178,2]
[327578263,1716241843990,-484.99936506,0.00019178,2]
[327578264,1716241843999,-500.0,0.00019178,2]
[327578265,1716241844008,-581.69919789,0.00019178,2]
[327578266,1716241844018,-500.0,0.00019178,2]
[327578267,1716241844027,-500.0,0.00019178,2]
[327578268,1716241844038,-500.0,0.00019178,2]
[327578269,1716241844047,-500.0,0.00019178,2]
[327578270,1716241844059,-500.0,0.00019178,2]
[327578271,1716241844070,-500.0,0.00019178,2]
[327578272,1716241844079,-500.0,0.00019178,2]
[327578273,1716241844089,-500.0,0.00019178,2]
[327578274,1716241844099,-500.0,0.00019178,2]
[327578275,1716241844110,-500.0,0.00019178,2]
[327578276,1716241844120,-500.0,0.00019178,2]
[327578277,1716241844129,-500.0,0.00019178,2]
[327578278,1716241844138,-500.0,0.00019178,2]
[327578279,1716241844148,-500.0,0.00019178,2]
[327578280,1716241844158,-500.0,0.00019178,2]
[327578281,1716241844168,-500.0,0.00019178,2]
[327578282,1716241844179,-500.0,0.00019178,2]
[327578283,1716241844189,-500.0,0.00019178,2]
[327578284,1716241844199,-500.0,0.00019178,2]
[327578285,1716241844211,-320.72822766,0.00019178,2]
[327578286,1716241844223,-500.0,0.00019178,2]
[327578287,1716241844239,-500.0,0.00019178,2]
[327578288,1716241844253,-248.43376773,0.00019178,2]
[327578289,1716241844264,-409.59838187,0.00019178,2]
[327578290,1716241844275,-500.0,0.00019178,2]
[327578291,1716241844287,-156.86268889,0.00019178,2]
[327578292,1716241844298,-500.0,0.00019178,2]
[327578293,1716241844309,-500.0,0.00019178,2]
[327578294,1716241844325,-500.0,0.00019178,2]
[327578295,1716241844337,-613.09747543,0.00019178,2]
[327578296,1716241844348,-378.63645465,0.00019178,2]
[327578297,1716241844360,-475.97037036,0.00019178,2]
[327578298,1716241844371,-201.13027922,0.00019178,2]
[327578299,1716241844383,-500.0,0.00019178,2]
[327578300,1716241844394,-161.676935,0.00019178,2]
[327578301,1716241844405,-2000.0,0.000199,2]
[327578302,1716241844417,-1565.51900701,0.0002,2]
[327578303,1716241844429,-240.40188331,0.0002,2]
[327578304,1716241844440,-7413.7136393,0.0002,2]
[327578305,1716241844451,-4692.31037495,0.0002,2]
[327578307,1716241844469,-18932.81446658,0.0002,2]
[327578309,1716241844481,-3123.25751756,0.0002,2]
[327578311,1716241844492,-604.443748,0.00020548,2]
[327578313,1716241844503,-727.66604329,0.00020783,2]
[327578315,1716241844515,-1043.44234529,0.00020905,2]
[327578317,1716241844525,-2466.41391558,0.00020906,2]
[327578318,1716241844536,-400.0,0.0002091,2]
[327578320,1716241844547,-348.3572859,0.0002091,2]
[327578322,1716241844559,-236.48555321,0.00020912,2]
[327578324,1716241844570,-9677.00183642,0.00020912,2]
[327578326,1716241844580,-16164.48889458,0.00020912,2]
[327578362,1716241844957,-10043.33599751,0.00020912,2]
[327578364,1716241844967,-309.5048201,0.00020912,2]
[327578366,1716241844977,-316.09468062,0.00020912,2]
[327578367,1716241844986,-1338.92794901,0.00020913,2]
[327578368,1716241844995,-305.37736198,0.0002175,2]
[327578369,1716241845004,-166.666666,0.00021918,2]
[327578370,1716241845013,-194.22890485,0.00022,2]
[327578371,1716241845024,-159.70333977,0.00022,2]
[327578372,1716241845033,-166.666666,0.00022431,2]
[327578373,1716241845043,-166.666666,0.00022944,2]
[327578374,1716241845052,-154.89434464,0.00023,2]
[327578375,1716241845061,-166.666666,0.00023456,2]
[327578376,1716241845071,-166.666666,0.00023969,2]
[327578377,1716241845080,-439.388929,0.00024384,2]
[327578378,1716241845089,-166.666666,0.00024482,2]
[327578379,1716241845099,-167.4232435,0.00025,2]
[327578380,1716241845108,-400.71262343,0.00025,2]
[327578381,1716241845118,-154.92595926,0.00025,14]
[327578382,1716241845127,-525.64777211,0.000266,2]
[327578383,1716241845136,-4586.42234349,0.00027,15]
[327578384,1716241845148,-1581.5393562,0.00027,15]
[327578385,1716241845158,-1136.59312053,0.0002739,2]
[327578386,1716241845167,-500.0,0.00027397,2]
[327578387,1716241845176,-500.0,0.00027397,2]
[327578388,1716241845186,-524.48030092,0.00027397,2]
[327578389,1716241845196,-727.66604329,0.00027736,2]
[327578390,1716241845205,-221.55802421,0.00028,2]
[327578391,1716241845216,-227.21883131,0.0002871,2]
[327578392,1716241845225,-297.98146529,0.00028855,2]
[327578393,1716241845235,-154.90705577,0.00029,2]
[327578394,1716241845244,-760.11966554,0.00029,2]
[327578395,1716241845253,-3523.94217635,0.00029,2]
[327578397,1716241845330,-107.26013194,0.00029,2]
[327578398,1716241845339,-194.74984511,0.00029,2]
[327578399,1716241845351,-91.0354929,0.00029,2]
[327578400,1716241845360,-285.45534619,0.0003,4]
[327578401,1716241845370,-464.09985769,0.0003,30]
[327578402,1716241845380,-918.25082451,0.0003,2]
[327578403,1716241845625,-357.46461018,0.00013928,2]
[327578431,1716241847105,-9043.08966312,0.00013928,2]
[327578432,1716241847115,-522.72294863,0.00014999,2]
[327578433,1716241847124,-309.43311193,0.00014999,2]
[327578434,1716241847133,-1450.46017766,0.00014999,2]
[327578435,1716241847142,-189.91157371,0.000156,2]
[327578436,1716241847151,-534.72428745,0.00027173,2]
[327578437,1716241847160,-5774.43917549,0.0003,2]
[327578438,1716241847170,-255.0,0.0003,2]
[327578439,1716241847178,-439.388929,0.0003031,2]
[327578440,1716241847188,-3000.0,0.00031,6]
[327578441,1716241847196,-5322.888497,0.0003101,6]
[327578442,1716241847205,-448.48281372,0.00032,4]
[327578443,1716241847217,-467.93476807,0.00034,4]
[327578444,1716241847226,-1031.98789097,0.00034519,2]
[327578445,1716241847236,-154.82968734,0.00034519,2]
[327578446,1716241847245,-154.82968634,0.00034519,2]
[327578447,1716241847254,-727.66604329,0.00034689,2]
[327578448,1716241847263,-216.15836745,0.00035,4]
[327578449,1716241847273,-4762.10124516,0.00035,4]
[327578450,1716241847282,-154.8915759,0.00035,4]
[327578451,1716241847292,-1332.26751932,0.00035,7]
[327578452,1716241847301,-200.0,0.00035325,120]
[327578453,1716241847311,-2979.45161563,0.00035616,3]
[327578454,1716241847320,-337.240224,0.00035616,120]
[327578455,1716241847330,-37631.33,0.00035616,3]
[327578456,1716241847339,-31359.44,0.00035616,3]
[327578457,1716241847349,-26132.87,0.00035616,3]
[327578458,1716241847358,-21777.39,0.00035616,3]
[327578459,1716241847367,-439.388929,0.00036236,2]
[327578460,1716241847376,-7500.0,0.000365,20]
[327578461,1716241847385,-1707.76234616,0.00037,2]
[327578462,1716241847394,-1332.26751932,0.000371,7]
[327578463,1716241847404,-2580.467,0.00038,25]
[327578464,1716241847414,-1000.0,0.00038356,2]
[327578465,1716241847423,-1000.0,0.00038356,2]
[327578466,1716241847432,-1002.87959058,0.00038356,2]
[327578467,1716241847441,-1453.38274835,0.000392,11]
[327578468,1716241847450,-500.0,0.00039355,5]
[327578469,1716241847461,-88888.0,0.000399,5]
[327578471,1716241847470,-7500.0,0.0004,30]
[327578473,1716241847479,-38040.83361524,0.0004,10]
[327578475,1716241847488,-14565.40304606,0.00040191,2]
[327578477,1716241847498,-215.30923216,0.00040822,31]
[327578479,1716241847507,-500.0,0.00041,120]
[327578481,1716241847517,-1027.58654188,0.00041095,30]
[327578483,1716241847526,-500.0,0.00041095,30]
[327578485,1716241847535,-500.0,0.00041096,31]
[327578487,1716241847545,-1453.38274835,0.000413,11]
[327578489,1716241847554,-500.0,0.00041369,31]
[327578491,1716241847563,-337.240224,0.00041553,120]
[327578493,1716241847573,-291.3463721,0.00041639,2]
[327578504,1716241847676,-291.3463721,0.00041639,2]
[327578506,1716241847687,-291.3463721,0.00041639,2]
[327578508,1716241847698,-196.9608837,0.00041639,2]
[327578510,1716241847707,-727.66604329,0.00041641,28]
[327578512,1716241847719,-500.0,0.00041643,32]
[327578514,1716241847728,-500.0,0.00041917,33]
[327578516,1716241847738,-154.8915759,0.00042,4]
[327578518,1716241847749,-439.388929,0.00042163,2]
[327578520,1716241847758,-500.0,0.00042191,34]
[327578522,1716241847768,-165.2380805,0.00042442,30]
[327578524,1716241847778,-160.0,0.00042458,3]
[327578526,1716241847787,-500.0,0.00042465,35]
[327578528,1716241847797,-500.0,0.00042739,36]
[327578530,1716241847806,-165.2380805,0.00042796,30]
[327578532,1716241847815,-165.2380805,0.00042883,30]
[327578534,1716241847824,-165.2380805,0.00042957,30]
[327578536,1716241847834,-1000.0,0.00043,2]
[327578538,1716241847843,-500.0,0.00043013,37]
[327578540,1716241847852,-151.40188398,0.00043206,30]
[327578542,1716241847862,-212.12770652,0.00043276,30]
[327578544,1716241847871,-500.0,0.00043287,38]
[327578546,1716241847880,-165.2380805,0.00043308,30]
[327578548,1716241847890,-1574.49797738,0.000434,15]
[327578550,1716241847900,-160.0,0.00043417,4]
[327578552,1716241847909,-500.0,0.00043561,39]
[327578554,1716241847918,-152.7044776,0.00043629,30]
[327578556,1716241847928,-165.2380805,0.000438,30]
[327578558,1716241847937,-500.0,0.00043835,40]
[327578560,1716241847947,-500.0,0.00043835,40]
[327578562,1716241847956,-500.0,0.00043835,40]
[327578564,1716241847967,-500.0,0.00043835,40]
[327578566,1716241847976,-500.0,0.00043835,40]
[327578568,1716241847985,-500.0,0.00043835,40]
[327578570,1716241847995,-754.94,0.00043835,40]
[327578572,1716241848004,-500.0,0.00043835,40]
[327578574,1716241848014,-300.0,0.00043835,7]
[327578576,1716241848023,-503.10576083,0.00043835,40]
[327578578,1716241848032,-500.0,0.00043835,40]
[327578579,1716241848041,-503.37214201,0.00043835,40]
[327578581,1716241848050,-501.3110064,0.00043835,40]
[327578582,1716241848059,-500.0,0.00043835,40]
[327578583,1716241848068,-502.65472074,0.00043835,40]
[327578584,1716241848079,-505.5950803,0.00043835,40]
[327578585,1716241848088,-500.0,0.00043835,40]
[327578586,1716241848097,-500.0,0.00043835,40]
[327578587,1716241848106,-500.0,0.00043835,40]
[327578588,1716241848116,-500.0,0.00043835,40]
[327578589,1716241848125,-501.08864485,0.00043835,40]
[327578590,1716241848134,-500.0,0.00043835,40]
[327578591,1716241848144,-500.0,0.00043835,40]
[327578592,1716241848153,-500.0,0.00043835,40]
[327578593,1716241848162,-500.0,0.00043835,40]
[327578594,1716241848172,-500.0,0.00043835,40]
[327578595,1716241848183,-500.0,0.00043835,40]
[327578596,1716241848201,-500.0,0.00043835,40]
[327578598,1716241848214,-501.59453709,0.00043835,40]
[327578600,1716241848225,-500.0,0.00043835,40]
[327578602,1716241848235,-500.0,0.00043835,40]
[327578604,1716241848246,-912.8,0.00043835,40]
[327578605,1716241848256,-500.0,0.00043835,40]
[327578606,1716241848266,-398.4220014,0.00043835,40]
[327578607,1716241848276,-611.49,0.00043835,40]
[327578608,1716241848286,-215.0,0.00043835,40]
[327578609,1716241848296,-500.0,0.00043835,40]
[327578610,1716241848306,-500.0,0.00043835,40]
[327578611,1716241848316,-502.47140459,0.00043835,40]
[327578612,1716241848326,-500.0,0.00043835,40]
[327578613,1716241848336,-500.0,0.00043835,40]
[327578614,1716241848346,-397.72808017,0.00043835,40]
[327578615,1716241848355,-633.55442687,0.00043835,40]
[327578616,1716241848366,-500.0,0.00043835,40]
[327578617,1716241848391,-581.91,0.00043835,40]
[327578618,1716241848413,-504.27301036,0.00043835,40]
[327578619,1716241848429,-502.99819098,0.00043835,40]
[327578620,1716241848446,-500.0,0.00043835,40]
[327578621,1716241848465,-500.0,0.00043835,7]
[327578622,1716241848483,-500.0,0.00043835,40]
[327578623,1716241848503,-500.0,0.00043835,40]
[327578624,1716241848520,-501.70025537,0.00043835,40]
[327578625,1716241848539,-500.0,0.00043835,40]
[327578626,1716241848554,-500.0,0.00043835,40]
[327578627,1716241848567,-500.0,0.00043835,40]
[327578628,1716241848584,-502.32056218,0.00043835,40]
[327578629,1716241848601,-500.0,0.00043835,40]
[327578630,1716241848617,-531.63907379,0.00043835,40]
[327578631,1716241848637,-509.59798596,0.00043835,30]
[327578632,1716241848651,-502.94616136,0.00043835,40]
[327578633,1716241848665,-500.0,0.00043835,40]
[327578634,1716241848680,-502.09288805,0.00043835,40]
[327578635,1716241848696,-502.62554742,0.00043835,40]
[327578636,1716241848710,-502.77777337,0.00043835,40]
[327578637,1716241848727,-500.0,0.00043835,40]
[327578638,1716241848743,-505.56843574,0.00043835,40]
[327578639,1716241848758,-500.0,0.00043835,40]
[327578640,1716241848774,-500.0,0.00043835,40]
[327578641,1716241848795,-843.14,0.00043835,40]
[327578642,1716241848811,-500.0,0.00043835,40]
[327578643,1716241848828,-506.06031072,0.00043835,40]
[327578644,1716241848843,-751.44,0.00043835,40]
[327578645,1716241848857,-500.0,0.00043835,40]
[327578646,1716241848872,-505.1641304,0.00043835,40]
[327578647,1716241848885,-500.0,0.00043835,40]
[327578648,1716241848899,-500.0,0.00043835,40]
[327578649,1716241848913,-500.0,0.00043835,40]
[327578650,1716241848928,-500.0,0.00043835,40]
[327578651,1716241848941,-621.14233574,0.00043835,30]
[327578652,1716241848954,-304.88190279,0.00043835,40]
[327578653,1716241848970,-500.0,0.00043835,40]
[327578654,1716241848989,-500.0,0.00043835,40]
[327578655,1716241849004,-730.64,0.00043835,40]
[327578656,1716241849019,-500.0,0.00043835,40]
[327578657,1716241849033,-500.0,0.00043835,40]
[327578658,1716241849047,-500.0,0.00043835,41]
[327578659,1716241849061,-500.0,0.00043835,42]
[327578660,1716241849075,-218.86439233,0.00043835,43]
[327578661,1716241849088,-504.06,0.00043835,40]
[327578662,1716241849101,-500.0,0.00043835,40]
[327578663,1716241849114,-500.0,0.00043835,40]
[327578664,1716241849128,-500.0,0.00043835,40]
[327578665,1716241849141,-168.81283607,0.00043835,40]
[327578666,1716241849154,-500.0,0.00043835,40]
[327578667,1716241849167,-500.0,0.00043835,40]
[327578668,1716241849179,-500.0,0.00043835,40]
[327578669,1716241849192,-500.0,0.00043835,40]
[327578670,1716241849205,-500.0,0.00043835,40]
[327578671,1716241849220,-500.0,0.00043835,40]
[327578672,1716241849233,-500.0,0.00043835,40]
[327578673,1716241849246,-593.01528777,0.00043835,40]
[327578674,1716241849260,-500.0,0.00043835,40]
[327578675,1716241849273,-1024.27,0.00043835,40]
[327578676,1716241849286,-500.0,0.00043835,40]
[327578677,1716241849300,-505.67873758,0.00043835,40]
[327578678,1716241849313,-500.0,0.00043835,40]
[327578679,1716241849326,-330.91746075,0.00043835,40]
[327578680,1716241849339,-500.0,0.00043835,40]
[327578681,1716241849352,-676.05,0.00043835,40]
[327578682,1716241849365,-500.0,0.00043835,40]
[327578683,1716241849378,-500.0,0.00043835,40]
[327578684,1716241849392,-507.48525704,0.00043835,40]
[327578685,1716241849404,-509.39,0.00043835,40]
[327578686,1716241849413,-505.2511928,0.00043835,40]
[327578687,1716241849423,-500.0,0.00043835,40]
[327578688,1716241849434,-500.0,0.00043835,40]
[327578689,1716241849444,-298.93059262,0.00043835,40]
[327578690,1716241849454,-603.06,0.00043835,40]
[327578691,1716241849466,-502.55782773,0.00043835,40]
[327578692,1716241849616,-500.0,0.00043835,40]
[327578693,1716241849671,-500.0,0.00043835,40]
[327578694,1716241849683,-500.0,0.00043835,40]
[327578695,1716241849693,-500.0,0.00043835,40]
[327578696,1716241849702,-500.0,0.00043835,40]
[327578697,1716241849711,-512.88258788,0.00043835,40]
[327578698,1716241849724,-298.31928935,0.00043835,40]
[327578699,1716241849734,-1565.75,0.00043835,40]
[327578700,1716241849744,-500.0,0.00043835,40]
[327578701,1716241849754,-505.81557187,0.00043835,40]
[327578702,1716241849763,-500.0,0.00043835,40]
[327578703,1716241849772,-192.29432936,0.00043835,40]
[327578704,1716241849782,-501.67187931,0.00043835,40]
[327578705,1716241849792,-500.0,0.00043835,40]
[327578706,1716241849801,-500.0,0.00043835,40]
[327578707,1716241849811,-504.13476022,0.00043835,40]
[327578708,1716241849821,-513.52493505,0.00043835,40]
[327578709,1716241849830,-500.0,0.00043835,40]
[327578710,1716241849839,-500.0,0.00043835,40]
[327578711,1716241849849,-500.0,0.00043835,40]
[327578712,1716241849858,-500.0,0.00043835,40]
[327578713,1716241849867,-500.0,0.00043835,40]
[327578714,1716241849876,-500.0,0.00043835,40]
[327578715,1716241849886,-500.0,0.00043835,40]
[327578716,1716241849895,-503.84569729,0.00043835,40]
[327578717,1716241849905,-623.9,0.00043835,40]
[327578718,1716241849914,-174.07468019,0.00043835,40]
[327578719,1716241849923,-502.19121166,0.00043835,40]
[327578720,1716241849932,-503.47948464,0.00043835,40]
[327578721,1716241849941,-500.0,0.00043835,40]
[327578722,1716241849950,-500.0,0.00043835,40]
[327578723,1716241849960,-500.0,0.00043835,40]
[327578724,1716241849970,-500.0,0.00043835,40]
[327578725,1716241849979,-500.0,0.00043835,40]
[327578726,1716241849989,-500.0,0.00043835,40]
[327578727,1716241849998,-292.64358485,0.00043835,2]
[327578728,1716241850007,-500.0,0.00043835,40]
[327578729,1716241850017,-830.35,0.00043835,40]
[327578730,1716241850027,-510.43395705,0.00043835,40]
[327578731,1716241850036,-500.71,0.00043835,40]
[327578732,1716241850045,-200.87844984,0.00043835,30]
[327578733,1716241850054,-502.57209962,0.00043835,40]
[327578734,1716241850063,-500.0,0.00043835,40]
[327578735,1716241850072,-502.02692124,0.00043835,40]
[327578736,1716241850082,-500.0,0.00043835,40]
[327578737,1716241850091,-544.32997715,0.00043835,40]
[327578738,1716241850101,-503.63162161,0.00043835,40]
[327578739,1716241850110,-500.0,0.00043835,40]
[327578740,1716241850119,-535.6,0.00043835,40]
[327578741,1716241850128,-500.0,0.00043835,40]
[327578742,1716241850138,-500.0,0.00043835,40]
[327578743,1716241850148,-500.0,0.00043835,40]
[327578744,1716241850157,-500.0,0.00043835,40]
[327578745,1716241850167,-500.0,0.00043835,40]
[327578746,1716241850176,-500.0,0.00043835,40]
[327578747,1716241850186,-500.0,0.00043835,40]
[327578748,1716241850196,-953.52,0.00043835,40]
[327578749,1716241850207,-500.0,0.00043835,40]
[327578750,1716241850218,-503.57998633,0.00043835,40]
[327578751,1716241850227,-500.0,0.00043835,40]
[327578752,1716241850237,-501.89677971,0.00043835,40]
[327578753,1716241850246,-500.0,0.00043835,40]
[327578754,1716241850256,-500.0,0.00043835,40]
[327578755,1716241850265,-502.71390221,0.00043835,40]
[327578756,1716241850275,-505.09456744,0.00043835,40]
[327578757,1716241850284,-956.89,0.00043835,40]
[327578758,1716241850293,-529.31180535,0.00043835,30]
[327578759,1716241850303,-500.0,0.00043835,40]
[327578760,1716241850312,-500.0,0.00043835,40]
[327578761,1716241850322,-500.0,0.00043835,40]
[327578762,1716241850331,-2898.06,0.00043835,40]